[Event "Budapest Chess Festival 2024"]
[Site "Budapest"]
[Date "2024.05.24"]
[Round "2.11"]
[White "Ivanisevic, Ivan"]
[Black "Bodrogi, Bendeguz"]
[Result "1/2-1/2"]
[ECO "D31"]
[WhiteElo "2537"]
[BlackElo "2348"]
[Annotator "TA"]
[PlyCount "84"]
[EventDate "2024.05.20"]
[EventType "swiss"]
[EventCountry "HUN"]
[SourceTitle "playchess.com"]
[Source "ChessBase"]
[SourceQuality "1"]
[TimeControl "40/5400+30:1800+30"]

{[%evp 17,84,0,13,31,9,0,0,0,0,-5,-8,-3,10,0,0,-10,12,0,44,64,71,48,72,81,82,0,0,0,0,-60,0,0,0,0,0,-59,-62,-66,-66,-83,-82,-90,-24,-34,-19,-46,-30,-45,0,0,0,0,0,0,0,0,0,0,0,0,0,0,0,0,0,0,0,0,6]} 1. d4 {[%emt 0:00:33]} d5 {[%emt 0:00:47]} 2. c4 {[%emt 0:00:05]} e6 {[%emt 0:00:11]} 3. Nc3 {[%emt 0:00:02]} a6 {[%emt 0:00:10]} 4. e3 {[%emt 0:00:07]} Nf6 {[%emt 0:00:51]} 5. Nf3 {[%emt 0:00:05]} b6 {[%emt 0:08:21]} 6. cxd5 {[%emt 0:06:00]} exd5 {[%emt 0:01:59]} 7. Ne5 {[%emt 0:01:52]} Bb7 {[%emt 0:04:03]} 8. Bd3 {[%emt 0:01:54]} Bd6 {[%emt 0:02:05]} 9. O-O {[%emt 0:00:25]} O-O {[%emt 0:01:00]} 10. f4 {[%emt 0:07:43]} c5 {[%emt 0:03:21]} 11. Qf3 {[%emt 0:01:54]} Nc6 {[%emt 0:04:18]} 12. Qh3 {[%emt 0:02:18][%cal Oc3d5] [#] aiming for Nxd5!} g6 {[%emt 0:15:05]} 13. Nxc6 {[%emt 0:04:35]} Bxc6 {[%emt 0:00:13]} 14. f5 {[%emt 0:00:05]} Ne4 {[%emt 0:06:28]} 15. Nxe4 {[%emt 0:09:00]} dxe4 {[%emt 0:00:14]} 16. Bc4 {[%emt 0:01:07] fxg6 is the strong threat.} Bb5 {[%emt 0:09:37]} 17. b3 {[%emt 0:04:04]} Bxc4 {[%emt 0:00:50]} 18. bxc4 {[%emt 0:00:05]} cxd4 {[%emt 0:06:52] [#]} 19. Bb2 $1 {[%emt 0:03:32]} Be5 {[%emt 0:07:21]} 20. Rad1 {[%emt 0:02:28]} Qc7 {[%emt 0:07:13]} 21. f6 {[%emt 0:04:29]} (21. exd4 $6 Bh8 $11) (21. Bxd4 $16 {Qh6 would now be deadly.} Rfd8 22. Qh6 Rxd4 23. exd4) 21... h5 $36 {[%emt 0:01:08][%mdl 2048] Black has some pressure.} (21... Qxc4 $2 22. Qh6 (22. Bxd4 h5 $18) 22... Bxf6 23. Rxf6 $18) 22. exd4 {[%emt 0:21:39]} Bd6 {[%emt 0:02:34]} 23. Ba3 {[%emt 0:09:12]} (23. Qe3 $11 Rfe8 (23... Bxh2+ $2 24. Kh1 $18) (23... Qxc4 24. Qh6 Bxh2+ 25. Kh1) 24. Rc1 (24. Qh6 $2 Bf8 $19)) 23... Rfe8 {[%emt 0:00:58]} (23... Bxa3 $15 24. Qxa3 Qxc4) 24. Bxd6 {[%emt 0:01:16]} Qxd6 {[%emt 0:00:03]} 25. Qe3 {[%emt 0:00:06]} Rac8 {[%emt 0:01:49]} 26. Qh6 {[%emt 0:07:29]} ({White should play} 26. Rc1 $1 $11) 26... Qf8 $1 $15 {[%emt 0:00:13]} 27. Qxf8+ {[%emt 0:00:04]} Kxf8 {[%emt 0:00:19][%mdl 4096] Endgame. KRR-KRR} 28. Rc1 {[%emt 0:00:03]} e3 {[%emt 0:03:18]} 29. d5 {[%emt 0:02:04]} Rc5 {[%emt 0:01:27]} (29... b5 $17 30. Rf4 (30. c5 $2 Re5 $19) 30... bxc4) 30. Rfe1 $11 {[%emt 0:00:48]} Re4 {[%emt 0:02:55]} 31. Kf1 {[%emt 0:00:59]} Rcxc4 {[%emt 0:02:09]} (31... Rexc4 32. Rxc4 Rxc4 33. Rxe3 $17) (31... Rexc4 {simplifies} 32. Rxc4 Rxc4 33. Rxe3 Rd4) 32. Ke2 {[%emt 0:00:47]} b5 {[%emt 0:02:29]} 33. Rxc4 {[%emt 0:01:23] The position is equal.} bxc4 {[%emt 0:00:06] KR-KR} 34. Rb1 {[%emt 0:00:03]} Ke8 {[%emt 0:03:02]} 35. Rb8+ {[%emt 0:03:37]} Kd7 {[%emt 0:00:02] And now ...c3 would win.} 36. Rb7+ {[%emt 0:00:06]} Kd6 {[%emt 0:00:39]} 37. Rxf7 {[%emt 0:00:06]} c3 {[%emt 0:00:59][%cal Oc3c2] ( -> ...c2!)} 38. Rf8 $1 {[%emt 0:00:45] Strongly threatening Rd8+.} c2 {[%emt 0:00:10]} (38... Kxd5 $2 {perishes.} 39. Rd8+ (39. f7 Rf4 $18) 39... Kc5 40. f7 $18) 39. Rc8 {[%emt 0:01:12]} Kxd5 {[%emt 0:01:34] Threatens to win with ...Rc4.} 40. Rxc2 {[%emt 0:00:00]} (40. f7 $5 Rf4 $8 41. Kxe3 Rxf7 42. Rxc2 $11) 40... Rf4 {[%emt 0:00:00]} 41. Kxe3 {[%emt 0:01:21]} Rxf6 {[%emt 0:00:22]} 42. h4 {[%emt 0:05:36]} Ke5 {Weighted Error Value: White=0.10 (very precise) /Black=0.14 (very precise) .  Mistake:       	White=3     	Black=2      Inaccurate:     	White=1     	Black=2      OK:         	White=12    	Black=11     Best:        	White=5     	Black=2      Strong:       	White=2     	Black=1} 1/2-1/2

[Event "Budapest Chess Festival 2024"]
[Site "Budapest"]
[Date "2024.05.24"]
[Round "2.12"]
[White "Filip, Lucian-Ioan"]
[Black "Mihok, Oliver"]
[Result "1/2-1/2"]
[ECO "B03"]
[WhiteElo "2353"]
[BlackElo "2528"]
[Annotator "TA"]
[PlyCount "97"]
[EventDate "2024.05.20"]
[EventType "swiss"]
[EventCountry "HUN"]
[SourceTitle "playchess.com"]
[Source "ChessBase"]
[SourceQuality "1"]
[TimeControl "40/5400+30:1800+30"]

{[%evp 12,97,28,33,51,51,45,14,27,7,12,-13,8,-55,-55,-58,-35,-56,-64,-54,-25,-77,-9,-21,-23,-26,-18,-123,-116,-98,-99,-95,-118,-96,-116,-92,-108,-113,-67,-70,-83,-102,-104,-95,-92,-120,-115,-124,-124,-107,-118,-109,-121,-131,-64,-40,-20,-16,-16,-75,0,0,0,0,0,0,0,0,0,0,0,0,0,0,0,0,0,0,0,0,0,0,0,0,0,0,0,-254]} 1. e4 {[%emt 0:00:32][%cal Be2e4,Be4e5][%mdl 32]} Nf6 {[%emt 0:01:45]} 2. e5 {[%emt 0:00:09]} Nd5 {[%emt 0:00:05]} 3. d4 {[%emt 0:00:44]} d6 {[%emt 0:00:06]} 4. c4 {[%emt 0:00:19]} Nb6 {[%emt 0:00:04]} 5. f4 {[%emt 0:00:21]} g6 {[%emt 0:03:02]} 6. Nc3 {[%emt 0:06:33]} Bg7 {[%emt 0:01:44]} 7. Be3 {[%emt 0:33:41]} Be6 {[%emt 0:01:20]} 8. b3 {[%emt 0:08:01]} dxe5 {[%emt 0:05:33]} 9. dxe5 {[%emt 0:01:36] Hoping for Qxd8+.} Nc6 {[%emt 0:01:52]} 10. Nf3 {[%emt 0:07:16]} f6 {[%emt 0:05:54]} 11. exf6 {[%emt 0:13:10]} exf6 {[%emt 0:00:47]} 12. Nd4 {[%emt 0:14:02]} (12. Qxd8+ $11 Rxd8 13. Kf2) 12... Nxd4 $15 {[%emt 0:06:27]} 13. Qxd4 {[%emt 0:00:12]} Qe7 $1 {[%emt 0:02:56]} 14. Qc5 {[%emt 0:00:12]} Qxc5 {[%emt 0:07:57]} 15. Bxc5 {[%emt 0:00:04]} O-O-O {[%emt 0:00:28]} 16. Be3 {[%emt 0:06:15]} (16. Rd1 $11 {remains equal.}) 16... Bg4 {[%emt 0:10:41]} (16... f5 $17 17. Rc1 Nd7) 17. h3 {[%emt 0:04:23]} f5 {[%emt 0:01:47]} 18. Rc1 {[%emt 0:00:05]} Bh5 {[%emt 0:02:43] next ...Rhe8 is good for Black.} 19. Be2 {[%emt 0:01:46]} (19. Kf2 $11) 19... Rhe8 $17 {[%emt 0:01:30]} 20. Kf2 {[%emt 0:00:14] [#] Black must now prevent g4.} Rxe3 $1 {[%emt 0:07:31]} 21. Kxe3 {[%emt 0:00:02]} Bd4+ {[%emt 0:00:19]} 22. Kd3 {[%emt 0:00:11] Threatens to win with g4.} Bxc3+ {[%emt 0:00:04]} 23. Kxc3 {[%emt 0:00:03] g4 is the strong threat.} Bxe2 {[%emt 0:00:06]} 24. Rhe1 {[%emt 0:00:50]} Bh5 {[%emt 0:05:50]} (24... Bd3 $17 {And now ...Be4 would win.} 25. Re7 Be4 26. Rxh7 c5 (26... Bxg2 27. Rg1 $11) (26... Rd3+ 27. Kb4 $17)) 25. Re7 {[%emt 0:00:18][%cal Oc1g1]} Nd7 $1 {[%emt 0:01:29]} 26. Rxh7 {[%emt 0:01:14]} Nf6 {[%emt 0:00:33]} 27. Re7 {[%emt 0:00:22]} Ne4+ {[%emt 0:01:36]} 28. Rxe4 {[%emt 0:01:12]} fxe4 {[%emt 0:00:04][%mdl 4096] Endgame. KRB-KR} 29. g4 {[%emt 0:00:03]} Rd3+ {[%emt 0:00:16]} 30. Kc2 {[%emt 0:00:27] [#]} Rf3 $1 {[%emt 0:08:28]} 31. gxh5 {[%emt 0:00:18]} (31. Rg1 Rxf4) 31... gxh5 {[%emt 0:00:08] KR-KR} (31... Rxh3 $2 {too greedy.} 32. hxg6 Kd7 33. Rg1 $18) 32. Kd2 {[%emt 0:01:21]} Kd7 {[%emt 0:00:55]} ({Resist} 32... Rxh3 33. Re1 $17) (32... Rxf4 $17 33. Ke3 Rh4) 33. Rg1 $15 {[%emt 0:00:05]} Rxh3 {[%emt 0:02:24]} 34. Rg7+ $1 {[%emt 0:00:42]} Kd6 {[%emt 0:00:42]} 35. Rg6+ {[%emt 0:00:23] [#]} Kc5 {[%emt 0:07:59]} (35... Ke7 $1 $17 36. Rg7+ Kd6) 36. Rg5+ $11 {[%emt 0:00:03] The position is equal.} Kb6 {[%emt 0:00:24]} 37. Re5 {[%emt 0:00:34]} Rh2+ {[%emt 0:00:29]} 38. Ke3 {[%emt 0:00:12]} h4 {[%emt 0:02:13]} 39. Rh5 {[%emt 0:01:17]} Rxa2 {[%emt 0:00:54]} 40. Rxh4 {[%emt 0:00:00][%cal Of4f5]} Rb2 {[%emt 0:00:00]} 41. f5 {[%emt 0:04:10] f6 would now be deadly.} Rxb3+ {[%emt 0:08:01]} 42. Kxe4 {[%emt 0:00:07] aiming for f6.} Kc6 {[%emt 0:02:19]} 43. f6 {[%emt 0:15:05] Intending f7 and mate.} Kd7 $1 {[%emt 0:00:19]} 44. Kf5 {[%emt 0:05:21]} Rf3+ {[%emt 0:03:34]} 45. Kg6 {[%emt 0:02:00]} Rg3+ {[%emt 0:00:22]} 46. Kf5 {[%emt 0:00:39]} Rf3+ {[%emt 0:01:38]} 47. Kg6 {[%emt 0:00:03]} Rg3+ {[%emt 0:00:40]} 48. Kf5 {[%emt 0:02:09]} Rf3+ {[%emt 0:00:05]} 49. Ke4 $2 {[%mdl 40960] Weighted Error Value: White=0.13 (very precise) /Black=0.09 (flawless) .  Loses game:     	White=1     	---        Mistake:       	White=3     	Black=4      Inaccurate:     	White=2     	Black=1      OK:         	White=18    	Black=16     Best:        	White=2     	Black=5      Strong:       	White=1     	Black=3     . An unexpected result.} (49. Kg6 $11 {and White has nothing to worry.}) 1/2-1/2

[Event "Budapest Chess Festival 2024"]
[Site "Budapest"]
[Date "2024.05.24"]
[Round "2.13"]
[White "Yaniv, Yuval"]
[Black "Kantor, Gergely"]
[Result "*"]
[ECO "C88"]
[WhiteElo "2337"]
[BlackElo "2527"]
[Annotator "RC"]
[PlyCount "38"]
[EventDate "2024.05.20"]
[EventType "swiss"]
[EventCountry "HUN"]
[SourceTitle "playchess.com"]
[Source "ChessBase"]
[SourceQuality "1"]
[TimeControl "40/5400+30:1800+30"]

1. e4 {[%emt 0:01:11]} e5 {[%emt 0:00:44]} 2. Nf3 {[%emt 0:00:21]} Nc6 {[%emt 0:00:10]} 3. Bb5 {[%emt 0:00:11]} a6 {[%emt 0:00:30]} 4. Ba4 {[%emt 0:00:07]} Nf6 {[%emt 0:00:50]} 5. O-O {[%emt 0:00:26]} Be7 {[%emt 0:01:02]} 6. Re1 {[%emt 0:00:32]} b5 {[%emt 0:00:23]} 7. Bb3 {[%emt 0:00:06]} O-O {[%emt 0:00:38]} 8. h3 {[%emt 0:00:34]} Bb7 {[%emt 0:01:57]} 9. d3 {[%emt 0:00:15]} Re8 {[%emt 0:06:37]} 10. Nbd2 {[%emt 0:06:14]} Bf8 {[%emt 0:10:06]} 11. a4 {[%emt 0:03:51]} h6 {[%emt 0:12:17]} 12. c3 {[%emt 0:01:29]} Na5 {[%emt 0:08:17]} 13. Bc2 {[%emt 0:05:24]} c5 {[%emt 0:09:08]} 14. Nf1 {[%emt 0:08:45]} d5 {[%emt 0:02:33]} 15. exd5 {[%emt 0:04:36]} Qxd5 {[%emt 0:01:58]} 16. axb5 {[%emt 0:02:20]} axb5 {[%emt 0:00:20]} 17. d4 {[%emt 0:00:45]} exd4 {[%emt 0:09:29]} 18. Re5 Re7 19. Rxe7 {[%emt 0:01:01]} Ne8 {[%emt 0:01:00]} *

[Event "Budapest Chess Festival 2024"]
[Site "Budapest"]
[Date "2024.05.24"]
[Round "2.13"]
[White "Yaniv, Yuval"]
[Black "Kantor, Gergely"]
[Result "0-1"]
[ECO "C88"]
[WhiteElo "2337"]
[BlackElo "2527"]
[Annotator "TA"]
[PlyCount "60"]
[EventDate "2024.05.20"]
[EventType "swiss"]
[EventCountry "HUN"]
[SourceTitle "playchess.com"]
[Source "ChessBase"]
[SourceQuality "1"]
[TimeControl "40/5400+30:1800+30"]

{[%evp 17,60,15,33,15,23,0,0,0,8,0,0,-32,0,0,0,0,0,-34,-9,-16,-13,-12,-13,-16,-19,-55,-33,-71,-19,-16,-27,-91,-79,-70,-74,-162,-146,-391,-390,-1147,-1152,-1697,-1921,-1822,-1761]} 1. e4 {[%emt 0:01:11]} e5 {[%emt 0:00:44]} 2. Nf3 {[%emt 0:00:21]} Nc6 {[%emt 0:00:10]} 3. Bb5 {[%emt 0:00:11]} a6 {[%emt 0:00:30]} 4. Ba4 {[%emt 0:00:07]} Nf6 {[%emt 0:00:50]} 5. O-O {[%emt 0:00:26]} Be7 {[%emt 0:01:02]} 6. Re1 {[%emt 0:00:32]} b5 {[%emt 0:00:23]} 7. Bb3 {[%emt 0:00:06]} O-O {[%emt 0:00:38]} 8. h3 {[%emt 0:00:34]} Bb7 {[%emt 0:01:57]} 9. d3 {[%emt 0:00:15]} Re8 {[%emt 0:06:37]} 10. Nbd2 {[%emt 0:06:14]} Bf8 {[%emt 0:10:06]} 11. a4 {[%emt 0:03:51]} h6 {[%emt 0:12:17]} 12. c3 {[%emt 0:01:29] The position is equal.} Na5 {[%emt 0:00:30]} 13. Bc2 {[%emt 0:00:30]} c5 {[%emt 0:00:30]} 14. Nf1 {[%emt 0:13:39]} d5 {[%emt 0:18:58]} 15. exd5 {[%emt 0:04:36]} Qxd5 {[%emt 0:00:30]} 16. axb5 {[%emt 0:00:30]} axb5 {[%emt 0:00:30]} 17. d4 {[%emt 0:00:30]} exd4 {[%emt 0:00:30]} 18. Rxe8 {[%emt 0:00:30]} Nxe8 {[%emt 0:00:30]} 19. cxd4 {[%emt 0:05:05]} c4 {[%emt 0:11:36]} 20. Ne3 {[%emt 0:03:25][%cal Bf1e3,Be3g4,Bg4e5][%mdl 32]} Qd8 {[%emt 0:03:04]} 21. Ng4 {[%emt 0:11:47]} Nf6 {[%emt 0:02:17]} 22. Nge5 {[%emt 0:04:36]} Be4 {[%emt 0:05:14]} (22... Bd5 $17) 23. Bxe4 {[%emt 0:15:47]} Nxe4 {[%emt 0:01:08]} 24. Bf4 {[%emt 0:00:32]} (24. Be3 $11) 24... Nb3 $17 {[%emt 0:02:14]} 25. Rxa8 {[%emt 0:00:36]} Qxa8 {[%emt 0:00:01]} 26. d5 {[%emt 0:03:17]} (26. Nd7 $17) 26... Bd6 $19 {[%emt 0:01:17]} 27. Be3 $2 {[%emt 0:01:12] [#] This costs White the game.} (27. g3 $17) 27... Qa2 {[%emt 0:04:04]} 28. Bd4 $2 {[%emt 0:06:06]} (28. Nc6 Qxb2 29. Ne1) 28... Nxd4 {[%emt 0:01:42] Black is clearly winning.} 29. Qxd4 {[%emt 0:00:08]} Qb1+ {[%emt 0:00:06]} 30. Kh2 {[%emt 0:00:07]} Bc5 {[%emt 0:00:30] Weighted Error Value: White=0.81/Black=0.09 (flawless) .  Loses game:     	White=1     	---        Mistake:       	White=3     	Black=1      Inaccurate:     	White=5     	Black=1      OK:         	White=3     	Black=7      Best:        	White=1     	Black=2} 0-1

[Event "Budapest Chess Festival 2024"]
[Site "Budapest"]
[Date "2024.05.24"]
[Round "2.14"]
[White "Szpar, Milosz"]
[Black "Sinz, Bernhard"]
[Result "1-0"]
[ECO "C63"]
[WhiteElo "2512"]
[BlackElo "2335"]
[Annotator "TA"]
[PlyCount "103"]
[EventDate "2024.05.20"]
[EventType "swiss"]
[EventCountry "HUN"]
[SourceTitle "playchess.com"]
[Source "ChessBase"]
[SourceQuality "1"]
[TimeControl "40/5400+30:1800+30"]

{[%evp 16,103,57,43,62,55,43,50,62,68,70,63,68,68,91,80,97,95,121,115,118,122,125,126,138,124,148,125,137,127,122,93,117,87,92,90,96,93,99,95,100,100,100,100,113,118,126,102,112,112,112,112,112,112,112,112,112,112,112,105,112,112,153,151,180,175,159,165,377,372,550,563,575,558,541,566,620,599,996,933,858,540,780,780,780,460,927,903,5920,5043]} 1. e4 {[%emt 0:00:34]} e5 {[%emt 0:00:40]} 2. Nf3 {[%emt 0:00:06]} Nc6 {[%emt 0:00:06]} 3. Bb5 {[%emt 0:00:09]} f5 {[%emt 0:00:14]} 4. d3 {[%emt 0:05:54]} fxe4 {[%emt 0:00:43]} 5. dxe4 {[%emt 0:00:04]} Nf6 {[%emt 0:00:13]} 6. O-O {[%emt 0:00:07]} Bc5 {[%emt 0:00:14]} 7. Bxc6 {[%emt 0:14:25]} bxc6 {[%emt 0:00:31]} 8. Nxe5 {[%emt 0:00:06]} O-O {[%emt 0:00:19]} 9. Nc3 {[%emt 0:00:04]} d6 {[%emt 0:00:51]} 10. Na4 {[%emt 0:05:11] Black must now prevent Nxc5. A dynamic duo of knights.} Qe8 {[%emt 0:01:22]} 11. Nd3 {[%emt 0:03:38]} Bd4 {[%emt 0:01:34][%cal Oc8g4] White is slightly better.} 12. c3 {[%emt 0:03:09]} Bb6 {[%emt 0:00:35]} 13. Nxb6 {[%emt 0:08:02]} axb6 {[%emt 0:00:08]} 14. Re1 {[%emt 0:10:02]} c5 {[%emt 0:23:16]} (14... Nxe4 $2 15. f3 $18) 15. c4 {[%emt 0:04:13]} Bb7 {[%emt 0:10:07][%cal Oe8f7]} 16. f3 {[%emt 0:01:44]} Qf7 {[%emt 0:12:28]} 17. b3 {[%emt 0:04:01]} Rae8 {[%emt 0:01:15][%cal Rf6e4]} 18. Bd2 {[%emt 0:08:50]} Nh5 {[%emt 0:03:40]} 19. a4 {[%emt 0:05:26]} Bc6 {[%emt 0:07:28]} 20. Kh1 {[%emt 0:01:40]} Qf6 {[%emt 0:07:52]} 21. Qc1 {[%emt 0:02:14]} h6 {[%emt 0:01:56]} 22. Bc3 {[%emt 0:01:48]} Qh4 {[%emt 0:03:12][%cal Rc6e4]} 23. Re3 {[%emt 0:01:13]} g5 {[%emt 0:10:17]} 24. Qe1 {[%emt 0:03:04]} Qxe1+ {[%emt 0:04:43]} 25. Raxe1 {[%emt 0:00:05]} ({Of course not} 25. Nxe1 $6 Rxe4 26. Rxe4 Bxe4 $11) 25... Nf4 {[%emt 0:03:02]} 26. Nxf4 {[%emt 0:01:12]} Rxf4 {[%emt 0:00:06]} 27. h3 {[%emt 0:00:11][%cal Bh2h3,Bh3h4][%mdl 32]} Kh7 {[%emt 0:03:20]} 28. Kg1 {[%emt 0:00:23]} Kg6 {[%emt 0:00:13]} 29. Kf2 {[%emt 0:01:55]} Rf7 {[%emt 0:00:46][%cal Bf4f7,Bf7e7,Be7e6][%mdl 32]} 30. Kg3 {[%emt 0:02:05]} Rfe7 {[%emt 0:01:07]} 31. Rd3 {[%emt 0:01:10]} h5 {[%emt 0:00:38]} 32. h4 {[%emt 0:01:21]} g4 {[%emt 0:00:47]} 33. Bd2 {[%emt 0:03:28] White is more active.} (33. fxg4 Rxe4 34. Rxe4 Rxe4 $14) 33... Re6 {[%emt 0:00:48]} 34. Bg5 {[%emt 0:00:26]} ({Don't take} 34. fxg4 Rxe4 35. Rxe4 Rxe4 $14) 34... Re5 {[%emt 0:01:09]} 35. Rde3 {[%emt 0:00:56]} gxf3 {[%emt 0:00:26]} 36. gxf3 {[%emt 0:00:07][%cal Bg2f3,Bf3f4,Bf4f5][%mdl 32]} Kf7 {[%emt 0:00:23]} 37. Kf2 {[%emt 0:00:43]} R5e6 {[%emt 0:00:16]} 38. Ke2 {[%emt 0:01:23]} Ra8 {[%emt 0:01:11]} 39. Kd3 {[%emt 0:00:59]} Ree8 {[%emt 0:00:41]} 40. f4 {[%emt 0:00:00]} Bd7 {[%emt 0:00:00]} 41. f5 {[%emt 0:08:56]} c6 $2 {[%emt 0:06:47] [#]} (41... Rac8 42. Kd2 Rf8) 42. Kc3 $18 {[%emt 0:02:26]} b5 {[%emt 0:07:29]} (42... Rac8 {keeps fighting.} 43. Rd1 d5 44. cxd5 (44. exd5 Rxe3+ 45. Bxe3 Bxf5 $18) 44... cxd5 45. Rxd5 Bc6) 43. Rd1 {[%emt 0:08:58] White is clearly winning.} d5 {[%emt 0:04:11]} 44. cxd5 {[%emt 0:00:09]} bxa4 {[%emt 0:02:09]} 45. dxc6 {[%emt 0:00:20]} Bxc6 {[%emt 0:00:17]} 46. e5 {[%emt 0:00:05][%cal Be4e5,Be5e6][%mdl 32]} Rab8 {[%emt 0:03:54]} 47. e6+ {[%emt 0:01:30]} Kg8 {[%emt 0:02:01]} 48. bxa4 {[%emt 0:03:41]} Bxa4 {[%emt 0:00:24] [#] Hoping for ...Rb3+.} 49. Ra1 {[%emt 0:02:44]} Rb3+ {[%emt 0:02:12]} 50. Kd2 {[%emt 0:06:11]} Rb2+ {[%emt 0:02:57]} (50... Rxe3 $142 51. Kxe3 Bd7) 51. Ke1 {[%emt 0:01:21]} Bb3 {[%emt 0:00:48]} 52. Bf6 {[%emt 0:00:23] Weighted Error Value: White=0.28 (precise) /Black=0.24 (precise) .  Mistake:       	---       	Black=2      Inaccurate:     	---       	Black=3      OK:         	White=21    	Black=9      Best:        	White=3     	Black=1} 1-0